bitfinex-derivatives/quotes_ETHF0:USTF0_20260119
["timestamp","ask_amount","ask_price","bid_price","bid_amount"]
[1768783280522,0.00465607,3222.2,3221.1,0.00466374]
[1768783280729,0.00465607,3222.2,3221.0,0.00931981]
[1768783280924,0.00327502,3223.0,3221.0,3.31243226]
[1768783281121,0.00327502,3223.0,3221.2,0.15529]
[1768783281325,0.00327502,3223.0,3221.5,0.00466374]
[1768783281527,0.00327502,3223.0,3221.6,0.00466374]
[1768783281824,0.00327502,3223.0,3221.9,0.00466374]
[1768783282024,0.00327502,3223.0,3221.7,0.00466374]
[1768783282426,0.00327502,3223.0,3221.2,3.30777619]
[1768783282427,0.00327502,3223.0,3221.8,0.00466374]
[1768783282733,0.00465607,3222.7,3221.0,0.00465607]
[1768783282922,0.00465607,3222.7,3221.0,0.00931981]
[1768783283230,3.3999073,3222.7,3221.0,0.00465607]
[1768783283732,5.40180563,3222.2,3221.0,0.00465607]
[1768783283929,3.55051123,3221.9,3220.2,0.00262078]
[1768783285031,3.55051123,3221.9,3220.7,0.00465607]
[1768783285735,3.55051123,3221.8,3220.2,0.00262078]
[1768783286037,5.33351123,3221.8,3220.2,0.00262078]
[1768783286426,3.55051123,3221.8,3220.2,0.00262078]
[1768783287632,3.55051123,3221.8,3220.7,0.00465607]
[1768783287835,3.39525123,3221.8,3220.7,0.00465607]
[1768783288137,3.39525123,3221.5,3220.2,0.00262078]
[1768783289632,3.39525123,3222.1,3220.2,0.00262078]
[1768783290038,3.39525123,3222.1,3220.8,0.00465607]
[1768783291235,5.24656563,3221.9,3220.2,0.00262078]
[1768783291435,3.39525123,3221.8,3220.2,0.00262078]
[1768783292239,0.79770246,3222.3,3220.2,0.00262078]
[1768783292240,3.39525123,3221.4,3220.2,0.00262078]
[1768783292640,3.39525123,3221.4,3218.9,3.58715592]
[1768783292641,3.55054123,3221.2,3218.9,3.58715592]
[1768783292828,3.55054123,3221.2,3219.0,0.00931981]
[1768783293033,3.55054123,3221.2,3219.1,0.00931981]
[1768783293330,0.00465607,3220.4,3218.9,3.58715592]
[1768783293543,0.00465607,3220.4,3219.5,0.00931981]
[1768783293840,0.00358862,3220.4,3219.6,0.00931981]
[1768783294226,0.00358862,3220.4,3218.0,3.43175592]
[1768783294227,3.39525123,3219.9,3218.0,3.43175592]
[1768783294431,3.39525123,3219.9,3217.5,3.43175592]
[1768783294628,3.39525123,3219.9,3217.5,3.58721592]
[1768783294837,0.15535,3220.0,3217.5,3.58721592]
[1768783295028,3.64100308,3220.3,3217.7,3.43175592]
[1768783295233,0.00465607,3219.0,3217.7,0.00291771]
[1768783295736,0.00465607,3219.0,3217.7,3.43467363]
[1768783296239,0.15534,3220.1,3218.0,5.28772639]
[1768783296547,0.15534,3220.1,3218.1,3.43175592]
[1768783296733,3.55059123,3220.1,3218.0,0.00465607]
[1768783296935,3.39525123,3219.9,3218.0,0.00465607]
[1768783297142,0.24832992,3220.3,3218.0,3.43641199]
[1768783297341,46.05015425,3220.4,3218.0,3.43641199]
[1768783297642,0.00465607,3219.3,3218.0,3.43641199]
[1768783298239,0.00358862,3220.4,3218.0,3.43641199]
[1768783298436,0.00358862,3220.4,3218.5,3.69034365]
[1768783298632,0.00358862,3220.4,3218.5,3.53493365]
[1768783298935,3.4945676,3220.4,3218.5,3.53493365]
[1768783299643,0.00465607,3219.8,3218.5,3.53493365]
[1768783299842,0.00465607,3219.8,3218.0,0.00465607]
[1768783300039,0.00465607,3219.8,3218.0,3.53958972]
[1768783300245,0.00358862,3220.4,3218.2,3.53493365]
[1768783301547,0.00358862,3220.4,3218.5,3.53493365]
[1768783302646,0.00465607,3219.8,3218.5,3.53493365]
[1768783305140,0.00465607,3219.8,3218.5,3.69035365]
[1768783305342,0.00358862,3220.4,3218.5,3.69035365]
[1768783305540,0.00358862,3220.4,3218.7,3.53493365]
[1768783306049,0.00358862,3220.4,3218.1,3.53493365]
[1768783306351,3.4945676,3220.4,3218.1,3.53493365]
[1768783306650,0.00358862,3220.4,3219.0,1.8513144]
[1768783306857,0.00358862,3220.4,3218.6,3.69034365]
[1768783309649,0.00358862,3220.4,3219.0,3.69032365]
[1768783310449,0.00358862,3220.4,3219.0,3.53493365]
[1768783313655,0.15527,3221.6,3219.3,3.50385635]
[1768783313860,3.34310284,3221.5,3219.3,3.50385635]
[1768783314359,3.34310284,3221.5,3220.1,0.00465607]
[1768783314754,1.8513144,3222.0,3220.1,0.00465607]
[1768783314755,0.79879193,3222.2,3220.1,3.51123585]
[1768783314951,3.49829284,3223.2,3220.6,3.50385635]
[1768783315851,3.34310284,3222.9,3220.6,3.50385635]
[1768783316051,3.34310284,3222.9,3220.8,3.50385635]
[1768783316257,3.49831284,3222.8,3220.3,3.50385635]
[1768783316458,3.34310284,3222.6,3220.3,3.50385635]
[1768783316855,0.15523,3222.5,3220.3,3.50385635]
[1768783317062,3.34310284,3222.2,3220.1,0.0073795]
[1768783317249,3.49835284,3222.0,3220.1,0.0073795]
[1768783317462,0.15525,3221.9,3220.1,0.0073795]
[1768783317664,3.34310284,3221.8,3220.1,0.0073795]
[1768783318760,3.49836284,3221.8,3220.1,0.0073795]
[1768783319458,3.34310284,3221.8,3220.1,0.0073795]
[1768783319659,3.34310284,3220.5,3218.1,3.50385635]
[1768783319856,1.786,3220.4,3218.1,3.50385635]
[1768783320058,3.34310284,3221.1,3218.4,3.65927635]
[1768783320664,3.34712806,3221.1,3218.4,3.66199838]
[1768783320862,3.34712806,3221.1,3219.4,0.00465607]
[1768783321262,3.34310284,3220.9,3219.4,0.00465607]
[1768783321466,3.49840284,3220.9,3219.4,0.00465607]
[1768783321665,3.34310284,3220.5,3218.4,3.50657838]
[1768783321962,3.34775891,3220.5,3218.4,0.00272203]
[1768783322168,3.34310284,3220.0,3218.4,0.00272203]
[1768783322355,3.34310284,3219.8,3218.4,0.00272203]
[1768783322861,3.34310284,3219.8,3218.8,0.00465607]
[1768783323063,3.49846284,3219.8,3217.2,3.65933635]
[1768783323368,3.49846284,3219.8,3217.4,3.50385635]
[1768783323562,5.28546284,3219.8,3217.4,3.50385635]
[1768783323968,5.28546284,3219.8,3217.4,3.50993588]
[1768783324170,3.34310284,3219.7,3218.3,0.00465607]
[1768783324466,3.34310284,3220.3,3218.4,0.00272203]
[1768783324771,1.94332,3220.6,3218.3,3.50851242]
[1768783324978,1.94332,3220.6,3218.5,3.50385635]
[1768783325873,0.00465607,3219.9,3218.5,3.50385635]
[1768783326674,0.00465607,3219.9,3218.9,0.00272203]
[1768783327176,0.00465607,3219.9,3219.1,0.00272203]
[1768783327471,0.00465607,3219.9,3218.9,0.00272203]
[1768783327976,0.00465607,3219.9,3219.1,0.00272203]
[1768783328173,0.00465607,3219.9,3218.9,0.00272203]
[1768783328569,3.5359574,3222.5,3219.4,1.8513144]
[1768783328570,0.15528,3221.4,3219.4,1.8513144]
[1768783328873,3.34712806,3221.1,3219.4,0.00272203]
[1768783329175,3.34712806,3221.1,3219.1,3.50385635]
[1768783329376,3.34712806,3221.1,3219.1,3.50657838]
[1768783329571,3.34712806,3221.1,3218.6,3.65926635]
[1768783329768,3.34712806,3221.1,3219.8,0.00465607]
[1768783329965,3.34712806,3221.1,3219.8,0.0085952]
[1768783331172,0.00465607,3220.8,3219.8,0.0085952]
[1768783332374,0.00465607,3220.8,3219.8,0.01131723]
[1768783332977,0.00465607,3220.8,3219.8,0.0085952]
[1768783335875,0.00465607,3220.8,3219.9,0.00272203]
[1768783336568,0.00465607,3220.8,3219.8,0.0085952]
[1768783336784,0.00465607,3220.8,3219.9,0.00272203]
[1768783337173,0.00465607,3220.8,3220.0,0.00272203]
[1768783337483,0.00465607,3220.8,3219.8,0.0085952]
[1768783337673,0.00465607,3220.8,3219.9,0.00272203]
[1768783337879,0.00465607,3220.8,3219.8,0.0085952]
[1768783338884,0.00465607,3220.8,3219.8,0.01131723]
[1768783339382,0.00465607,3220.8,3219.9,0.00272203]
[1768783341381,0.00465607,3220.8,3219.8,0.0085952]
[1768783341690,0.00465607,3220.8,3219.9,0.00272203]
[1768783342181,0.00465607,3220.8,3220.0,0.00272203]
[1768783342381,0.00465607,3220.8,3219.9,0.00272203]
[1768783342582,0.00465607,3220.8,3220.3,0.00272203]
[1768783342783,0.00465607,3220.8,3219.8,3.55016091]
[1768783343284,0.00465607,3220.8,3219.8,0.0085952]
[1768783346989,0.00465607,3220.8,3219.8,3.55016091]
[1768783347885,0.00465607,3220.8,3219.8,0.0085952]
[1768783348188,0.00402522,3221.1,3219.8,3.55016091]
[1768783349089,0.00402522,3221.1,3219.8,0.0085952]
[1768783354392,0.00402522,3221.1,3219.8,3.55016091]
[1768783356399,3.51776405,3222.5,3220.4,3.54156571]
[1768783357289,3.51776405,3223.0,3220.9,3.54156571]
[1768783357488,0.002326,3223.0,3221.1,3.54156571]
[1768783357698,0.002326,3223.0,3221.3,3.54156571]
[1768783357893,0.002326,3223.0,3221.7,0.00465607]
[1768783358399,0.002326,3223.0,3222.3,0.04245207]
[1768783358603,0.002326,3223.0,3222.3,0.04536759]
[1768783359095,44.25075557,3224.6,3222.3,3.38264487]
[1768783359294,3.45075557,3224.6,3222.3,3.53787487]
[1768783359600,3.45075557,3225.2,3223.4,0.04245207]
[1768783359988,3.45374623,3225.2,3223.4,0.04245207]
[1768783360196,3.45374623,3225.2,3224.0,0.00465607]
[1768783360887,3.45374623,3225.2,3222.6,3.33727728]
[1768783361597,3.45374623,3225.2,3222.8,3.33727728]
[1768783362299,0.00465607,3224.3,3223.7,0.00465607]
[1768783362901,0.00465607,3224.3,3222.8,3.33727728]
[1768783363395,0.00465607,3224.3,3222.3,0.00291552]
[1768783363704,3.45541164,3224.3,3222.3,0.00291552]
[1768783364292,3.45075557,3224.1,3222.3,0.00291552]
[1768783364605,3.45075557,3223.9,3222.3,0.00291552]
[1768783364804,3.60591557,3223.9,3222.3,0.00291552]
[1768783364988,3.60591557,3223.9,3221.0,3.49257728]
[1768783365401,3.45075557,3223.6,3222.1,0.00465607]
[1768783365600,3.45075557,3223.4,3221.0,3.33727728]
[1768783365989,3.45075557,3223.4,3221.0,3.34082552]
[1768783366194,6.24475557,3223.9,3221.0,3.34082552]
[1768783366498,3.45075557,3223.9,3221.5,3.49254728]
[1768783366702,0.00465607,3222.8,3221.7,3.33727728]
[1768783366894,0.00218015,3222.8,3221.7,3.33727728]
[1768783367095,3.45075557,3224.5,3222.4,3.34193335]
[1768783367798,3.45075557,3224.5,3222.4,0.00465607]
[1768783367993,3.45350381,3224.5,3222.4,0.00465607]
[1768783368200,0.00465607,3223.8,3222.4,0.00465607]
[1768783368590,0.00465607,3223.8,3222.4,3.34193335]
[1768783369205,0.00465607,3223.8,3222.4,0.00465607]
[1768783370907,0.00465607,3223.8,3222.4,3.49716335]
[1768783371206,0.00274824,3224.5,3222.7,3.33727728]
[1768783372311,0.00465607,3223.9,3222.7,3.33727728]
[1768783372907,0.00465607,3223.9,3222.4,0.00465607]
[1768783373307,3.60965383,3223.9,3222.4,0.00465607]
[1768783376815,0.00465607,3223.9,3222.4,0.00465607]
[1768783378897,3.60965383,3223.9,3222.4,0.00465607]
[1768783380007,0.00465607,3223.9,3222.4,0.00465607]
[1768783380210,3.60965383,3223.9,3222.4,0.00465607]
[1768783381308,0.15519,3223.3,3221.3,3.39955895]
[1768783381508,3.60499776,3223.2,3221.3,3.39955895]
[1768783381904,1.791,3223.6,3221.3,3.39955895]
[1768783382115,3.60499776,3223.8,3221.5,3.39955895]
[1768783382519,3.60499776,3223.8,3222.3,0.00465607]
[1768783384206,3.60499776,3223.8,3221.3,3.39955895]
[1768783384412,3.60499776,3223.4,3221.3,3.39955895]
[1768783384611,3.60499776,3223.2,3221.3,3.39955895]
[1768783384813,3.76018776,3223.2,3221.0,0.00354824]
[1768783385119,3.60499776,3222.8,3221.0,0.00354824]
[1768783385515,3.60499776,3222.8,3221.0,3.40310719]
[1768783385716,3.60499776,3223.4,3221.0,3.40310719]
[1768783386010,3.76020776,3222.9,3221.0,0.00354824]
[1768783386212,3.76020776,3222.9,3221.0,3.40310719]
[1768783386418,3.76020776,3222.9,3221.0,0.00354824]
[1768783386805,3.60499776,3222.7,3221.0,0.00354824]
[1768783387204,0.00465607,3222.2,3221.0,0.00354824]
[1768783387406,0.00793857,3222.2,3221.0,0.00354824]
[1768783390208,0.00793857,3222.2,3221.0,3.40310719]
[1768783390608,3.60499776,3223.3,3221.0,3.40310719]
[1768783391409,3.76018776,3223.3,3221.0,3.40310719]
[1768783391609,0.1552,3223.0,3221.0,0.00354824]
[1768783391809,3.60499776,3222.7,3221.0,0.00354824]
[1768783392208,0.00465607,3222.2,3221.0,0.00354824]
[1768783392914,0.00465607,3222.2,3221.0,3.40310719]
[1768783393517,0.00465607,3222.2,3221.0,0.00354824]
[1768783396226,0.0036823,3223.3,3221.3,3.40421502]
[1768783396928,3.60499776,3223.0,3221.3,0.00465607]
[1768783397121,0.0036823,3223.3,3221.3,3.40421502]
[1768783398422,0.00465607,3222.6,3221.3,3.40421502]
[1768783398631,3.60965383,3222.6,3221.0,0.00354824]
[1768783398927,3.76022776,3222.4,3220.1,3.55489895]
[1768783399726,3.76022776,3222.4,3220.1,3.55788648]
[1768783401026,1.85210648,3222.2,3220.1,3.55788648]
[1768783401229,3.76024776,3222.1,3220.1,3.40254648]
[1768783404432,3.76024776,3222.1,3220.8,0.00465607]
[1768783406221,6.10548205,3222.6,3220.8,0.00465607]
[1768783407329,0.00465607,3222.6,3220.8,3.50354987]
[1768783407548,0.00465607,3222.6,3220.8,3.65885987]
[1768783407750,0.00465607,3222.6,3220.8,3.50354987]
[1768783408044,0.00465607,3222.6,3221.1,3.4988938]
[1768783411949,1.85210648,3222.4,3220.8,0.00465607]
[1768783412252,5.15793246,3222.4,3220.8,0.00465607]
[1768783412744,3.30582598,3222.3,3220.8,0.00465607]
[1768783413553,3.46105598,3222.3,3220.8,0.00465607]
[1768783415056,3.46108598,3221.8,3220.1,0.00298753]
[1768783416764,3.30582598,3221.3,3220.1,0.00298753]
[1768783417154,3.30582598,3221.3,3219.0,3.4988938]
[1768783417355,3.30582598,3220.8,3218.5,3.4988938]
[1768783417660,0.00465607,3220.0,3218.5,3.4988938]
[1768783418258,0.00696615,3220.0,3218.5,3.50140343]
[1768783418455,3.29028513,3222.6,3220.0,3.26176757]
[1768783418759,3.29028513,3222.2,3220.0,3.26176757]
[1768783418967,3.29028513,3222.2,3219.4,1.85210648]
[1768783418968,3.29028513,3222.0,3219.5,3.26176757]
[1768783419453,3.29273754,3222.0,3219.5,3.26176757]
[1768783419653,0.00465607,3221.1,3219.5,3.26176757]
[1768783420860,0.00465607,3221.1,3220.0,3.26642364]
[1768783421050,0.00465607,3221.1,3220.0,0.00465607]
[1768783422356,0.00245241,3222.0,3220.0,3.26642364]
[1768783422657,0.00245241,3222.0,3220.2,3.26176757]
[1768783422858,0.00245241,3222.0,3220.4,3.26176757]
[1768783423162,0.15519,3223.3,3220.0,0.00465607]
[1768783423163,0.15519,3223.3,3220.6,3.26176757]
[1768783423356,3.29028513,3223.2,3220.6,3.41707757]
[1768783423556,0.00465607,3222.3,3220.6,3.41707757]
[1768783423763,0.00465607,3222.3,3221.6,0.00465607]
[1768783424164,0.00787229,3222.3,3221.6,0.00735093]
[1768783424359,1.795,3223.4,3221.6,0.00735093]
[1768783424861,1.795,3223.4,3221.6,3.2691185]
[1768783425063,3.29028513,3223.8,3221.6,3.2691185]
[1768783425260,3.29028513,3224.4,3221.6,3.2691185]
[1768783425456,3.2941178,3224.4,3221.9,3.26176757]
[1768783425760,0.00383267,3224.4,3222.4,3.26176757]
[1768783425966,0.00383267,3224.4,3222.8,3.26176757]
[1768783426652,0.00383267,3224.4,3223.3,0.00465607]
[1768783428762,0.00465607,3224.2,3223.3,0.00465607]
[1768783435767,0.00465607,3224.2,3222.3,0.15523]
[1768783436369,3.53500938,3224.2,3222.1,3.27059033]
[1768783436967,3.53500938,3224.2,3222.8,0.00465607]
[1768783437270,3.53035331,3224.0,3221.8,0.15526]
[1768783437465,3.53035331,3224.0,3221.6,0.00269486]
[1768783437466,5.38245979,3223.2,3221.6,0.00269486]
[1768783437675,3.53035331,3223.1,3221.6,0.00269486]
[1768783438066,3.68554331,3223.1,3221.6,0.00269486]
[1768783438668,3.53035331,3222.6,3220.4,0.15532]
[1768783439475,3.53035331,3222.6,3220.2,3.27059033]
[1768783439769,0.00465607,3221.8,3220.2,3.27284074]
[1768783440074,0.00808404,3221.8,3220.2,3.42817074]
[1768783440268,3.53035331,3223.2,3220.6,3.27059033]
[1768783440466,3.53035331,3223.2,3220.7,3.27059033]
[1768783440668,5.32435331,3223.8,3221.4,3.27059033]
[1768783440878,3.53035331,3223.8,3221.6,1.85210648]
[1768783441078,3.53035331,3224.5,3221.9,3.42584033]
[1768783441278,3.53329292,3224.5,3221.9,3.42584033]
[1768783441577,0.00465607,3223.5,3221.9,3.27059033]
[1768783442667,1.85210648,3223.3,3221.3,3.27059033]
[1768783443168,3.53500938,3223.5,3222.0,0.00465607]
[1768783443374,0.00465607,3223.5,3222.0,0.00465607]
[1768783443977,0.5,3223.3,3222.0,0.00465607]
[1768783444579,4.03035331,3223.3,3222.0,0.00465607]
[1768783444768,4.18554331,3223.3,3222.0,0.00465607]
[1768783445174,3.53035331,3223.1,3222.0,0.00465607]
[1768783445573,3.68555331,3223.1,3222.0,0.00465607]
[1768783448988,3.53035331,3223.1,3222.0,0.00465607]
[1768783449479,3.68555331,3223.1,3220.6,2.794]
[1768783449674,3.68555331,3223.1,3220.7,5.12269681]
[1768783449986,3.68555331,3223.1,3220.8,3.27059033]
[1768783450484,3.68555331,3223.1,3220.8,3.42590033]
[1768783452191,3.68555331,3223.1,3220.9,3.27059033]
[1768783452487,3.53035331,3223.1,3220.9,3.27059033]
[1768783452690,0.5,3223.3,3221.4,3.27059033]
[1768783453076,0.5,3223.3,3221.3,1.85210648]
[1768783453077,0.5,3223.3,3221.7,3.27059033]
[1768783453281,0.5,3223.3,3221.9,3.27059033]
[1768783453488,0.00465607,3223.5,3222.1,3.27059033]
[1768783454589,0.00465607,3223.5,3221.4,3.27059033]
[1768783454981,3.53500938,3223.5,3220.8,6.06459033]
[1768783455186,0.15518,3223.4,3221.0,3.42588033]
[1768783455693,0.00465607,3223.5,3221.3,3.27059033]
[1768783455885,0.00465607,3223.5,3221.5,3.27059033]
[1768783456080,0.15983607,3223.5,3221.5,3.27059033]
[1768783456295,3.69018938,3223.5,3221.5,3.27059033]
[1768783456593,3.53035331,3223.4,3220.8,3.27059033]
[1768783456790,3.53035331,3223.2,3220.8,3.27059033]
[1768783457597,3.53035331,3223.2,3220.2,2.79625041]
[1768783457800,3.68555331,3222.9,3220.3,3.42592033]
[1768783458186,3.68555331,3222.9,3220.4,3.27059033]
[1768783458381,0.00465607,3223.5,3220.4,3.27059033]
[1768783458687,3.53500938,3223.5,3221.4,3.27059033]
[1768783459488,0.00465607,3223.5,3221.4,3.27059033]
[1768783459994,0.00465607,3223.5,3221.4,5.27797681]
[1768783460194,0.00465607,3223.5,3221.5,3.27059033]
[1768783460394,0.00465607,3223.5,3221.5,3.42586033]
[1768783461004,0.00465607,3223.5,3221.6,0.15527]
[1768783461202,0.00465607,3223.5,3221.9,3.27059033]
[1768783463014,0.00465607,3223.5,3222.1,3.27309214]
[1768783463995,0.00465607,3223.5,3221.4,0.15528]
[1768783463996,3.39602044,3223.5,3221.5,3.27309214]
[1768783466002,3.55120044,3223.5,3221.5,3.27309214]
[1768783467006,3.39602044,3223.5,3221.3,0.00465607]
[1768783467211,3.39136437,3222.8,3221.3,0.00465607]
[1768783468112,3.54657437,3222.8,3221.3,0.00465607]
[1768783468312,3.39136437,3222.6,3221.3,0.00465607]
[1768783472409,3.39136437,3223.1,3221.3,0.00465607]
[1768783473510,0.15519,3223.2,3221.3,3.27774821]
[1768783474210,0.00465607,3223.5,3221.3,3.27774821]
[1768783474910,0.00465607,3223.5,3221.3,3.43302821]
[1768783476205,3.55120044,3223.5,3221.3,3.27774821]
[1768783477215,3.39136437,3223.0,3221.3,0.00465607]
[1768783479201,0.00465607,3223.5,3221.3,3.28291243]
[1768783480215,3.39264242,3223.5,3221.3,3.28291243]
[1768783480407,0.00465607,3223.5,3221.5,3.43352636]
[1768783481024,3.39264242,3223.5,3221.3,0.00465607]
[1768783481322,3.54318635,3223.1,3221.3,0.00465607]
[1768783483207,0.1552,3223.1,3221.3,3.28291243]
[1768783484621,3.54318635,3223.1,3221.3,0.00465607]
[1768783486721,0.00465607,3223.5,3221.3,3.28291243]
[1768783486928,3.54782242,3223.5,3221.3,3.28291243]
[1768783490521,3.54782242,3223.5,3221.3,3.43819243]
[1768783491923,3.54319635,3222.8,3221.3,0.00465607]
[1768783492222,3.38798635,3222.8,3221.3,0.00465607]
[1768783492416,3.54317635,3223.3,3221.3,0.00465607]
[1768783492617,4.18713163,3223.2,3221.3,0.00465607]
[1768783492818,3.43375079,3223.2,3221.3,0.00465607]
[1768783493019,3.27856079,3223.0,3221.3,0.00465607]
[1768783493224,0.15521,3222.9,3221.3,0.00465607]
[1768783493425,3.27856079,3222.6,3221.3,0.00465607]
[1768783494018,3.43378079,3222.6,3221.3,0.00465607]
[1768783495025,3.27856079,3222.6,3221.3,0.00465607]
[1768783496828,0.15521,3222.9,3221.3,0.00465607]
[1768783497426,3.43377079,3222.9,3221.3,0.00465607]
[1768783497819,0.15521,3222.8,3221.3,0.00465607]
[1768783498021,3.27856079,3222.7,3221.3,0.00465607]
[1768783499428,3.43377079,3222.7,3221.3,0.00465607]
[1768783500628,0.15522,3222.6,3221.3,0.00465607]
[1768783500819,3.43382079,3221.9,3220.2,0.00225041]
[1768783501018,3.27856079,3221.7,3220.2,0.00225041]
[1768783501220,3.27856079,3221.7,3219.2,3.17530424]
[1768783501416,3.27856079,3221.3,3218.6,3.17885648]
[1768783501623,3.27856079,3220.6,3218.4,4.11082618]
[1768783501828,0.15527,3221.5,3218.9,3.29073702]
[1768783502028,3.43383079,3221.5,3218.9,3.29073702]
[1768783502223,3.43383079,3221.5,3219.9,0.00310406]
[1768783502427,3.27856079,3221.0,3218.9,0.00218719]
[1768783502927,3.27856079,3220.7,3218.9,0.00218719]
[1768783503124,0.15527,3221.5,3218.9,3.29292421]
[1768783503328,0.00256239,3221.9,3219.5,3.44610702]
[1768783503522,0.00256239,3221.9,3219.5,3.29073702]
[1768783504028,0.00256239,3221.9,3219.2,0.15538]
[1768783504029,0.15526,3221.8,3219.2,0.15538]
[1768783504324,0.15528,3221.4,3219.0,3.29073702]
[1768783504528,0.15528,3221.4,3218.9,0.00218719]
[1768783504730,0.1553,3221.0,3218.9,0.00218719]
[1768783505119,0.00465607,3220.5,3218.9,3.29292421]
[1768783505320,0.00465607,3220.5,3219.6,0.00465607]
[1768783505625,3.28321686,3220.5,3219.6,0.00465607]
[1768783505837,3.28321686,3220.5,3218.9,0.00218719]
[1768783506528,3.43853686,3220.5,3218.9,0.00218719]
[1768783507129,3.43853686,3220.5,3217.8,0.15545]
[1768783507130,3.43389079,3220.3,3217.8,3.29073702]
[1768783507334,3.27856079,3220.1,3217.8,3.29073702]
[1768783507718,3.27856079,3219.9,3217.8,3.29073702]
[1768783507920,3.27856079,3219.9,3216.8,2.95500235]
[1768783508122,3.27856079,3219.7,3216.9,3.29073702]
[1768783508429,0.00465607,3218.6,3218.0,0.00465607]
[1768783508632,0.00740951,3218.6,3218.0,0.00465607]
[1768783509232,0.00740951,3218.6,3216.9,3.29073702]
[1768783510235,0.00740951,3218.6,3216.8,2.95895939]
[1768783510736,3.2859703,3218.6,3216.8,0.00395704]
[1768783511033,3.27856079,3218.3,3216.8,0.00395704]
[1768783511240,3.27856079,3218.0,3215.7,3.29073702]
[1768783511625,3.27856079,3217.8,3214.8,3.29073702]
[1768783511830,3.27856079,3217.8,3215.2,3.29073702]
[1768783512237,0.00466345,3216.8,3215.2,3.29329341]
[1768783513132,0.00466345,3216.8,3215.2,0.00255639]
[1768783513935,3.28322424,3216.8,3215.2,0.00255639]
[1768783515737,3.27856079,3216.6,3215.2,0.00255639]
[1768783515933,3.27856079,3216.6,3213.4,3.29073702]
[1768783515934,3.27856079,3216.3,3213.4,3.29073702]
[1768783516132,3.43409079,3216.3,3213.4,3.29073702]
[1768783516344,3.27856079,3216.1,3213.4,3.29073702]
[1768783516627,0.00466345,3215.2,3213.4,3.29073702]
[1768783516835,0.00799509,3215.2,3213.4,3.29434286]
[1768783517034,0.00799509,3215.2,3213.6,3.29073702]
[1768783517231,0.00799509,3215.2,3213.9,3.29073702]
[1768783517632,3.27856079,3216.7,3213.9,3.29073702]
[1768783517836,3.27856079,3216.7,3214.2,3.29073702]
[1768783518440,3.27856079,3216.7,3214.2,3.44635702]
[1768783518736,0.00466345,3215.8,3214.2,3.44635702]
[1768783519244,0.00466345,3215.8,3214.6,0.1556]
[1768783519443,0.00466345,3215.8,3214.7,0.00466345]
[1768783520945,3.28081107,3216.7,3214.7,0.00466345]
[1768783522035,0.00466345,3216.0,3214.7,0.00466345]
[1768783522438,0.00466345,3216.0,3214.8,3.34587757]
[1768783522744,5.18872183,3216.7,3214.7,0.00466345]
[1768783522940,3.32860406,3216.6,3214.7,0.00466345]
[1768783523144,3.32860406,3216.4,3214.7,0.00466345]
[1768783523743,3.32860406,3215.4,3213.4,0.00360584]
[1768783524842,3.32860406,3215.4,3213.4,0.15926584]
[1768783525237,40.8,3215.8,3213.4,3.33567219]
[1768783525439,0.00466345,3215.9,3213.4,3.33567219]
[1768783525440,0.00466345,3215.9,3214.3,1.85786749]
[1768783525640,0.00466345,3215.9,3214.3,3.48768635]
[1768783525838,0.00466345,3215.9,3214.3,3.33206635]
[1768783526046,0.00466345,3215.9,3214.6,0.1556]
[1768783526540,0.00466345,3215.9,3214.1,0.00466345]
[1768783527249,0.00466345,3215.9,3214.4,0.15561]
[1768783528946,0.00466345,3215.9,3214.1,0.00466345]
[1768783529652,3.33326751,3215.9,3214.1,0.00466345]
[1768783529846,3.32860406,3215.7,3214.1,0.00466345]
[1768783530550,5.34202155,3215.7,3214.1,0.00466345]
[1768783530850,3.32860406,3215.6,3214.1,0.00466345]
[1768783531547,0.00466345,3215.9,3214.3,0.15562]
[1768783531747,0.00466345,3215.9,3214.4,0.15561]
[1768783533550,0.00466345,3215.9,3214.5,0.15561]
[1768783533941,0.00466345,3215.9,3214.7,0.1556]
[1768783535254,0.00225028,3216.7,3215.0,3.35924186]
[1768783535444,0.00225028,3216.7,3215.0,3.51482186]
[1768783535645,0.00225028,3216.7,3215.2,0.15557]
[1768783536545,0.00466345,3216.3,3215.2,0.15557]
[1768783536744,0.00225028,3216.7,3215.2,3.46910813]
[1768783536943,0.00225028,3216.7,3215.6,0.15556]
[1768783538041,3.32860406,3218.0,3215.8,0.00466345]
[1768783538446,3.32860406,3218.0,3215.9,0.15554]
[1768783538752,2.8,3218.5,3216.3,0.15552]
[1768783538950,2.8,3218.5,3216.2,3.25339582]
[1768783539145,2.80233631,3218.5,3216.2,3.25595492]
[1768783539343,0.00466345,3217.7,3216.2,0.0025591]
[1768783540655,0.00466345,3217.7,3216.3,0.15552]
[1768783540856,0.00466345,3217.7,3216.2,0.0025591]
[1768783541453,0.00466345,3217.7,3216.4,0.15552]
[1768783542247,0.00466345,3217.7,3216.2,3.11464045]
[1768783542847,0.00233631,3218.5,3217.0,1.85786749]
[1768783543050,0.00233631,3218.5,3217.3,0.15547]
[1768783543552,3.28391027,3219.8,3217.1,3.0852367]
[1768783543755,3.28391027,3219.8,3217.9,0.15544]
[1768783543961,3.28391027,3220.4,3218.2,0.15543]
[1768783544453,0.00466345,3219.6,3218.2,0.15543]
[1768783544654,0.0078962,3219.6,3218.2,0.15543]
[1768783544951,0.0078962,3219.6,3218.3,0.15542]
[1768783545157,0.0078962,3219.6,3218.5,0.15542]
[1768783545453,3.28391027,3221.0,3218.5,4.85523991]
[1768783545750,3.28391027,3221.0,3218.6,2.9948414]
[1768783546363,3.28764258,3221.0,3218.6,2.9948414]
[1768783546544,3.28764258,3221.0,3219.3,0.15538]
[1768783547247,3.28764258,3221.0,3218.6,2.9948414]
[1768783547248,3.28764258,3221.0,3219.4,0.15537]
[1768783547755,0.00373231,3221.0,3219.9,0.00466345]
[1768783549454,3.28764258,3221.0,3219.9,0.00466345]
[1768783549656,3.28391027,3220.9,3218.5,2.96117993]
[1768783549956,3.28391027,3220.9,3218.5,0.15795102]
[1768783550863,3.28391027,3220.9,3219.4,0.00466345]
[1768783551944,3.28391027,3220.4,3218.5,0.00253102]
[1768783552955,1.85786749,3220.0,3218.5,0.00253102]
[1768783553165,3.57016512,3219.9,3217.3,0.15547]
[1768783553354,0.00466345,3219.6,3217.3,0.15547]
[1768783553548,3.57016512,3219.4,3217.3,0.15547]
[1768783554168,3.57016512,3219.4,3217.3,0.15840946]
[1768783554371,3.57016512,3219.4,3218.0,0.00466345]
[1768783554568,3.57016512,3218.9,3217.3,0.00293946]
[1768783555768,3.57016512,3218.4,3216.0,0.15554]
[1768783556480,0.00466345,3217.5,3216.0,0.15554]
[1768783556869,0.00769887,3217.5,3216.0,0.15925646]
[1768783557172,3.57016512,3219.1,3216.8,0.1555]
[1768783557372,3.57016512,3219.1,3217.0,2.01335749]
[1768783557769,3.57016512,3219.1,3217.0,0.15549]
[1768783557968,3.57016512,3219.1,3217.2,0.15548]
[1768783558166,3.57256559,3219.1,3217.2,0.15548]
[1768783558974,3.57256559,3219.1,3217.3,0.15547]
[1768783560987,3.57256559,3219.1,3216.6,0.15551]
[1768783561378,0.00466345,3218.2,3216.6,0.15551]